lending/lending_fUSD_20240207
["ID","MTS","AMOUNT","RATE_DAILY","PERIOD"]
[313416010,1707329457577,-508.14774365,0.00046575,31]
[313416011,1707329457588,-500.0,0.00046575,31]
[313416012,1707329457599,-500.0,0.00046575,31]
[313416013,1707329457609,-379.34170905,0.00046575,31]
[313416014,1707329457618,-500.0,0.00046575,31]
[313416015,1707329457627,-500.0,0.00046575,31]
[313416016,1707329457636,-647.77,0.00046575,31]
[313416017,1707329457645,-500.0,0.00046575,31]
[313416018,1707329457654,-500.0,0.00046575,31]
[313416019,1707329457663,-536.63,0.00046575,31]
[313416020,1707329457672,-500.0,0.00046575,31]
[313416021,1707329457681,-500.45208409,0.00046575,31]
[313416022,1707329457690,-545.99655108,0.00046575,31]
[313416023,1707329457699,-500.0,0.00046575,31]
[313416024,1707329457708,-500.0,0.00046575,31]
[313416025,1707329457717,-858.48,0.00046575,31]
[313416026,1707329457726,-500.0,0.00046575,31]
[313416027,1707329457735,-9134.66902647,0.00046575,31]
[313416028,1707329457744,-500.0,0.00046575,31]
[313416029,1707329457753,-500.0,0.00046575,31]
[313416030,1707329457762,-500.0,0.00046575,31]
[313416031,1707329457771,-500.0,0.00046575,31]
[313416032,1707329457780,-545.53,0.00046575,31]
[313416033,1707329457789,-500.0,0.00046575,31]
[313416034,1707329457798,-521.41588826,0.00046575,31]
[313416035,1707329457808,-590.7,0.00046575,31]
[313416036,1707329457817,-500.0,0.00046575,2]
[313416037,1707329457826,-500.0,0.00046575,31]
[313416038,1707329457836,-500.0,0.00046575,31]
[313416039,1707329457845,-500.0,0.00046575,31]
[313416040,1707329457854,-187.62033898,0.00046575,31]
[313416041,1707329457864,-500.0,0.00046575,31]
[313416042,1707329457873,-500.0,0.00046575,31]
[313416043,1707329457882,-500.0,0.00046575,31]
[313416044,1707329457891,-500.0,0.00046575,31]
[313416045,1707329457900,-500.0,0.00046575,31]
[313416046,1707329457909,-500.0,0.00046575,31]
[313416047,1707329457918,-558.7,0.00046575,31]
[313416048,1707329457928,-511.23602314,0.00046575,31]
[313416049,1707329457937,-3019.5,0.00046575,31]
[313416050,1707329457946,-500.0,0.00046575,31]
[313416051,1707329457955,-500.0,0.00046575,31]
[313416052,1707329457965,-563.63,0.00046575,31]
[313416053,1707329457977,-590.98111959,0.00046575,31]
[313416054,1707329457987,-10000.0,0.00046575,31]
[313416055,1707329457996,-500.0,0.00046575,31]
[313416056,1707329458006,-500.0,0.00046575,31]
[313416057,1707329458017,-500.0,0.00046575,31]
[313416058,1707329458026,-500.0,0.00046575,31]
[313416059,1707329458035,-500.0,0.00046575,31]
[313416060,1707329458044,-500.0,0.00046575,31]
[313416061,1707329458055,-500.0,0.00046575,31]
[313416062,1707329458065,-500.0,0.00046575,31]
[313416063,1707329458074,-500.0,0.00046575,31]
[313416064,1707329458085,-500.0,0.00046575,31]
[313416065,1707329458094,-500.62370076,0.00046575,31]
[313416066,1707329458103,-477.72071218,0.00046575,31]
[313416067,1707329458112,-602.33,0.00046575,31]
[313416068,1707329458122,-1000.0,0.00046575,2]
[313416069,1707329458131,-500.0,0.00046575,31]
[313416070,1707329458140,-500.0,0.00046575,31]
[313416071,1707329458150,-500.0,0.00046575,31]
[313416072,1707329458159,-500.0,0.00046575,31]
[313416073,1707329458169,-500.0,0.00046575,31]
[313416074,1707329458178,-500.0,0.00046575,31]
[313416075,1707329458187,-904.04,0.00046575,31]
[313416076,1707329458196,-663.39,0.00046575,31]
[313416077,1707329458205,-500.0,0.00046575,31]
[313416078,1707329458215,-500.0,0.00046575,31]
[313416079,1707329458225,-500.0,0.00046575,31]
[313416080,1707329458234,-500.0,0.00046575,31]
[313416081,1707329458243,-500.0,0.00046575,31]
[313416082,1707329458254,-500.0,0.00046575,31]
[313416083,1707329458263,-500.0,0.00046575,31]
[313416084,1707329458272,-721.86,0.00046575,31]
[313416085,1707329458281,-500.0,0.00046575,31]
[313416086,1707329458290,-500.0,0.00046575,31]
[313416087,1707329458299,-1584.3,0.00046575,31]
[313416088,1707329458308,-500.0,0.00046575,31]
[313416089,1707329458445,-500.0,0.00046575,31]
[313416090,1707329458455,-500.0,0.00046575,31]
[313416091,1707329458464,-500.0,0.00046575,31]
[313416092,1707329458473,-502.90043033,0.00046575,31]
[313416093,1707329458483,-500.0,0.00046575,31]
[313416094,1707329458492,-500.0,0.00046575,31]
[313416095,1707329458501,-500.0,0.00046575,31]
[313416096,1707329458511,-500.0,0.00046575,31]
[313416097,1707329458520,-500.0,0.00046575,31]
[313416098,1707329458529,-500.0,0.00046575,31]
[313416099,1707329458538,-441.92481636,0.00046575,31]
[313416100,1707329458547,-500.0,0.00046575,31]
[313416101,1707329458557,-500.0,0.00046575,31]
[313416102,1707329458566,-527.82,0.00046575,31]
[313416103,1707329458575,-904.64,0.00046575,31]
[313416104,1707329458585,-500.0,0.00046575,31]
[313416105,1707329458596,-500.0,0.00046575,31]
[313416106,1707329458605,-500.0,0.00046575,31]
[313416107,1707329458614,-843.81,0.00046575,31]
[313416108,1707329458623,-525.57573018,0.00046575,31]
[313416109,1707329458634,-632.9218196,0.00046575,31]
[313416110,1707329458645,-500.0,0.00046575,31]
[313416111,1707329458655,-550.2,0.00046575,31]
[313416112,1707329458664,-500.0,0.00046575,31]
[313416113,1707329458674,-500.0,0.00046575,31]
[313416114,1707329458683,-511.66841663,0.00046575,31]
[313416115,1707329458693,-500.0,0.00046575,31]
[313416116,1707329458705,-500.0,0.00046575,31]
[313416117,1707329458714,-500.0,0.00046575,31]
[313416118,1707329458723,-500.0,0.00046575,31]
[313416119,1707329458731,-500.0,0.00046575,31]
[313416120,1707329458741,-732.91,0.00046575,31]
[313416121,1707329458751,-154.81941139,0.00046575,31]
[313416122,1707329458762,-500.0,0.00046575,31]
[313416123,1707329458773,-500.0,0.00046575,31]
[313416124,1707329458782,-500.0,0.00046575,31]
[313416125,1707329458791,-500.0,0.00046575,31]
[313416126,1707329458801,-566.21,0.00046575,31]
[313416127,1707329458811,-1854.49,0.00046575,31]
[313416128,1707329458820,-1213.68,0.00046575,31]
[313416129,1707329458829,-986.87,0.00046575,31]
[313416130,1707329458840,-550.23780488,0.00046575,31]
[313416131,1707329458849,-318.36687364,0.00046575,31]
[313416132,1707329458858,-500.0,0.00046575,31]
[313416133,1707329458868,-500.0,0.00046575,31]
[313416134,1707329458877,-500.0,0.00046575,31]
[313416135,1707329458887,-500.0,0.00046575,31]
[313416136,1707329458896,-500.0,0.00046575,31]
[313416137,1707329458905,-500.0,0.00046575,31]
[313416138,1707329458915,-500.0,0.00046575,31]
[313416139,1707329458925,-660.9,0.00046575,31]
[313416140,1707329458936,-500.0,0.00046575,31]
[313416141,1707329458946,-500.0,0.00046575,31]
[313416142,1707329458955,-697.29,0.00046575,31]
[313416143,1707329458965,-513.75,0.00046575,31]
[313416144,1707329458977,-500.0,0.00046575,31]
[313416145,1707329458986,-500.0,0.00046575,31]
[313416146,1707329458995,-500.0,0.00046575,31]
[313416147,1707329459005,-1107.1,0.00046575,31]
[313416148,1707329459014,-500.0,0.00046575,31]
[313416149,1707329459023,-500.0,0.00046575,31]
[313416150,1707329459033,-500.0,0.00046575,31]
[313416151,1707329459042,-500.0,0.00046575,31]
[313416152,1707329459054,-1046.34,0.00046575,31]
[313416153,1707329459065,-500.0,0.00046575,31]
[313416154,1707329459074,-500.0,0.00046575,31]
[313416155,1707329459084,-500.0,0.00046575,31]
[313416156,1707329459093,-712.21,0.00046575,31]
[313416157,1707329459104,-500.0,0.00046575,31]
[313416158,1707329459113,-500.0,0.00046575,31]
[313416159,1707329459122,-500.0,0.00046575,31]
[313416160,1707329459131,-500.0,0.00046575,31]
[313416161,1707329459141,-1498.0,0.00046575,31]
[313416162,1707329459150,-573.47,0.00046575,31]
[313416163,1707329459160,-500.0,0.00046575,31]
[313416164,1707329459170,-500.0,0.00046575,31]
[313416165,1707329459180,-500.0,0.00046575,31]
[313416166,1707329459189,-500.0,0.00046575,31]
[313416167,1707329459198,-500.0,0.00046575,31]
[313416168,1707329459208,-732.82,0.00046575,31]
[313416169,1707329459217,-500.0,0.00046575,31]
[313416170,1707329459226,-500.0,0.00046575,31]
[313416171,1707329459236,-1106.04,0.00046575,31]
[313416172,1707329459245,-2845.58,0.00046575,31]
[313416173,1707329459255,-500.0,0.00046575,31]
[313416174,1707329459264,-500.0,0.00046575,31]
[313416175,1707329459273,-781.15,0.00046575,31]
[313416176,1707329459282,-500.0,0.00046575,31]
[313416177,1707329459292,-2069.59,0.00046575,5]
[313416178,1707329459302,-500.0,0.00046575,31]
[313416179,1707329459312,-544.85,0.00046575,31]
[313416180,1707329459321,-556.21,0.00046575,31]
[313416181,1707329459339,-500.0,0.00046575,31]
[313416182,1707329459360,-500.0,0.00046575,31]
[313416183,1707329459378,-500.0,0.00046575,31]
[313416184,1707329459398,-1188.82,0.00046575,31]
[313416185,1707329459414,-1350.97,0.00046575,31]
[313416186,1707329459433,-500.0,0.00046575,31]
[313416187,1707329459451,-500.0,0.00046575,31]
[313416188,1707329459468,-500.0,0.00046575,31]
[313416189,1707329459486,-496.75904255,0.00046575,31]
[313416190,1707329459501,-500.0,0.00046575,31]
[313416191,1707329459520,-500.0,0.00046575,31]
[313416192,1707329459539,-500.0,0.00046575,31]
[313416193,1707329459553,-500.0,0.00046575,31]
[313416194,1707329459569,-691.2,0.00046575,31]
[313416195,1707329459587,-1081.82,0.00046575,31]
[313416196,1707329459602,-500.0,0.00046575,31]
[313416197,1707329459618,-500.0,0.00046575,31]
[313416198,1707329459634,-704.62,0.00046575,7]
[313416199,1707329459649,-500.0,0.00046575,31]
[313416200,1707329459664,-540.3,0.00046575,31]
[313416201,1707329459679,-500.0,0.00046575,31]
[313416202,1707329459694,-500.0,0.00046575,31]
[313416203,1707329459712,-500.0,0.00046575,31]
[313416204,1707329459728,-500.0,0.00046575,31]
[313416205,1707329459742,-523.8199605,0.00046575,31]
[313416206,1707329459760,-595.09,0.00046575,31]
[313416207,1707329459775,-500.0,0.00046575,31]
[313416208,1707329459790,-500.0,0.00046575,31]
[313416209,1707329459805,-500.0,0.00046575,31]
[313416210,1707329459820,-508.54,0.00046575,31]
[313416211,1707329459836,-656.35,0.00046575,31]
[313416212,1707329459851,-555.75,0.00046575,31]
[313416213,1707329459866,-500.0,0.00046575,31]
[313416214,1707329459886,-500.0,0.00046575,31]
[313416215,1707329459901,-500.0,0.00046575,31]
[313416216,1707329459918,-512.46902566,0.00046575,31]
[313416217,1707329459933,-500.0,0.00046575,31]
[313416218,1707329459950,-542.30616886,0.00046575,31]
[313416219,1707329459965,-500.0,0.00046575,31]
[313416220,1707329459983,-500.0,0.00046575,31]
[313416221,1707329459998,-500.0,0.00046575,31]
[313416222,1707329460013,-500.0,0.00046575,31]
[313416223,1707329460029,-169.81,0.00046575,31]
[313416224,1707329460044,-705.26,0.00046575,31]
[313416225,1707329460060,-500.0,0.00046575,31]
[313416226,1707329460077,-509.19662831,0.00046575,31]
[313416227,1707329460093,-1000.0,0.00046575,7]
[313416228,1707329460108,-674.4,0.00046575,31]
[313416229,1707329460123,-500.0,0.00046575,31]
[313416230,1707329460138,-500.0,0.00046575,31]
[313416231,1707329460154,-1599.5,0.00046575,31]
[313416232,1707329460170,-500.0,0.00046575,31]
[313416233,1707329460186,-1402.51,0.00046575,31]
[313416234,1707329460201,-500.0,0.00046575,31]
[313416235,1707329460216,-1711.76,0.00046575,31]
[313416236,1707329460232,-500.0,0.00046575,31]
[313416237,1707329460247,-500.0,0.00046575,31]
[313416238,1707329460263,-500.0,0.00046575,31]
[313416239,1707329460279,-1432.09,0.00046575,31]
[313416240,1707329460295,-500.0,0.00046575,31]
[313416241,1707329460310,-500.0,0.00046575,31]
[313416242,1707329460325,-500.0,0.00046575,31]
[313416243,1707329460340,-500.0,0.00046575,31]
[313416244,1707329460355,-500.0,0.00046575,31]
[313416245,1707329460370,-500.0,0.00046575,31]
[313416246,1707329460385,-1558.05,0.00046575,31]
[313416247,1707329460400,-500.0,0.00046575,31]
[313416248,1707329460415,-507.27491166,0.00046575,31]
[313416249,1707329460431,-589.99532906,0.00046575,31]
[313416250,1707329460446,-500.0,0.00046575,31]
[313416251,1707329460461,-500.0,0.00046575,5]
[313416252,1707329460477,-554.32925478,0.00046575,31]
[313416253,1707329460492,-500.0,0.00046575,31]
[313416254,1707329460508,-500.0,0.00046575,31]
[313416255,1707329460522,-500.0,0.00046575,31]
[313416256,1707329460538,-734.54,0.00046575,31]
[313416257,1707329460552,-500.0,0.00046575,31]
[313416258,1707329460567,-5000.0,0.00046575,31]
[313416259,1707329460582,-500.0,0.00046575,31]
[313416260,1707329460597,-5967.93,0.00046575,31]
[313416261,1707329460612,-150.0,0.00046575,31]
[313416262,1707329460627,-522.99,0.00046575,31]
[313416263,1707329460642,-500.0,0.00046575,31]
[313416264,1707329460656,-500.0,0.00046575,31]
[313416265,1707329460672,-500.0,0.00046575,31]
[313416266,1707329460687,-500.0,0.00046575,31]
[313416267,1707329460702,-1374.83,0.00046575,31]
[313416268,1707329460716,-500.0,0.00046575,31]
[313416269,1707329460731,-1021.52,0.00046575,31]
[313416270,1707329460747,-735.3,0.00046575,31]
[313416271,1707329460762,-500.0,0.00046575,31]
[313416272,1707329460955,-500.0,0.00046575,31]
[313416273,1707329460965,-1129.3,0.00046575,31]
[313416274,1707329460977,-500.0,0.00046575,31]
[313416275,1707329460986,-500.0,0.00046575,31]
[313416276,1707329460995,-503.61,0.00046575,31]
[313416277,1707329461005,-500.0,0.00046575,31]
[313416278,1707329461014,-500.0,0.00046575,31]
[313416279,1707329461024,-899.0,0.00046575,31]
[313416280,1707329461033,-500.0,0.00046575,31]
[313416281,1707329461043,-500.0,0.00046575,31]
[313416282,1707329461053,-500.0,0.00046575,31]
[313416283,1707329461063,-524.65371893,0.00046575,31]
[313416284,1707329461072,-500.0,0.00046575,31]
[313416285,1707329461083,-500.0,0.00046575,31]
[313416286,1707329461093,-515.45,0.00046575,31]
[313416287,1707329461103,-951.7,0.00046575,31]
[313416288,1707329461112,-500.0,0.00046575,31]
[313416289,1707329461122,-500.0,0.00046575,31]
[313416290,1707329461132,-588.55771151,0.00046575,31]
[313416291,1707329461141,-506.7,0.00046575,31]
[313416292,1707329461152,-1014.5,0.00046575,31]
[313416293,1707329461162,-901.94,0.00046575,31]
[313416294,1707329461171,-862.04,0.00046575,31]
[313416295,1707329461182,-476.14491023,0.00046575,31]
[313416296,1707329461191,-767.61,0.00046575,31]
[313416297,1707329461201,-500.0,0.00046575,31]
[313416298,1707329461210,-500.0,0.00046575,31]
[313416299,1707329461219,-512.93336518,0.00046575,31]
[313416300,1707329461228,-500.0,0.00046575,31]
[313416301,1707329461237,-500.0,0.00046575,31]
[313416302,1707329461246,-500.0,0.00046575,31]
[313416303,1707329461255,-1177.73,0.00046575,31]
[313416304,1707329461264,-500.0,0.00046575,31]
[313416305,1707329461273,-500.0,0.00046575,31]
[313416306,1707329461283,-508.35,0.00046575,31]
[313416307,1707329461292,-500.0,0.00046575,31]
[313416308,1707329461302,-1301.81,0.00046575,31]
[313416309,1707329461311,-500.0,0.00046575,31]
[313416310,1707329461320,-1000.0,0.00046575,120]
[313416311,1707329461329,-500.0,0.00046575,31]
[313416312,1707329461342,-500.0,0.00046575,31]
[313416313,1707329461352,-500.0,0.00046575,31]
[313416314,1707329461361,-571.26848594,0.00046575,31]
[313416315,1707329461371,-1060.39,0.00046575,31]
[313416316,1707329461381,-1100.55,0.00046575,30]
[313416317,1707329461390,-501.31954526,0.00046575,31]
[313416318,1707329461400,-832.33,0.00046575,31]
[313416319,1707329461409,-500.0,0.00046575,31]
[313416320,1707329461418,-500.0,0.00046575,31]
[313416321,1707329461428,-500.0,0.00046575,31]
[313416322,1707329461437,-500.0,0.00046575,31]
[313416323,1707329461446,-500.0,0.00046575,31]
[313416324,1707329461455,-500.0,0.00046575,31]
[313416325,1707329461464,-500.0,0.00046575,31]
[313416326,1707329461474,-1169.09,0.00046575,31]
[313416327,1707329461483,-500.0,0.00046575,31]
[313416328,1707329461493,-500.0,0.00046575,31]
[313416329,1707329461502,-881.48,0.00046575,31]
[313416330,1707329461511,-500.0,0.00046575,31]
[313416331,1707329461520,-500.0,0.00046575,31]
[313416332,1707329461529,-500.0,0.00046575,31]
[313416333,1707329461539,-151.0,0.00046575,14]
[313416334,1707329461548,-500.0,0.00046575,31]
[313416335,1707329461558,-1442.33,0.00046575,120]
[313416336,1707329461567,-500.0,0.00046575,31]
[313416337,1707329461576,-2246.18,0.00046575,5]
[313416338,1707329461588,-500.0,0.00046575,31]
[313416339,1707329461598,-500.0,0.00046575,31]
[313416340,1707329461608,-500.0,0.00046575,31]
[313416341,1707329461617,-1105.23,0.00046575,31]
[313416342,1707329461627,-500.0,0.00046575,31]
[313416343,1707329461636,-1229.21,0.00046575,31]
[313416344,1707329461646,-548.6,0.00046575,31]
[313416345,1707329461656,-500.0,0.00046575,31]
[313416346,1707329461666,-500.0,0.00046575,2]
[313416347,1707329461675,-500.0,0.00046575,31]
[313416348,1707329461685,-716.5,0.00046575,31]
[313416349,1707329461694,-1990.08,0.00046575,31]
[313416350,1707329461703,-500.0,0.00046575,31]
[313416351,1707329461713,-500.0,0.00046575,31]
[313416352,1707329461722,-1250.0,0.00046575,31]
[313416353,1707329461731,-962.64,0.00046575,31]
[313416354,1707329461741,-500.0,0.00046575,31]
[313416355,1707329461750,-522.8,0.00046575,31]
[313416356,1707329461759,-500.0,0.00046575,31]
[313416357,1707329461768,-500.0,0.00046575,31]
[313416358,1707329461777,-1102.84,0.00046575,31]
[313416359,1707329461787,-500.0,0.00046575,31]
[313416360,1707329461796,-500.0,0.00046575,31]
[313416361,1707329461806,-500.0,0.00046575,31]
[313416362,1707329461815,-500.0,0.00046575,31]
[313416363,1707329461824,-1121.3,0.00046575,31]
[313416364,1707329461835,-500.0,0.00046575,31]
[313416365,1707329461845,-993.68,0.00046575,31]
[313416366,1707329461854,-803.56,0.00046575,31]
[313416367,1707329461863,-500.0,0.00046575,31]
[313416368,1707329461873,-1108.65,0.00046575,31]
[313416369,1707329461882,-500.0,0.00046575,31]
[313416370,1707329461892,-500.0,0.00046575,31]
[313416371,1707329461902,-1071.26,0.00046575,31]
[313416372,1707329461913,-500.0,0.00046575,31]
[313416373,1707329461923,-500.0,0.00046575,31]
[313416374,1707329461934,-500.0,0.00046575,31]
[313416375,1707329461944,-1022.43,0.00046575,31]
[313416376,1707329461953,-1304.86,0.00046575,31]
[313416377,1707329461963,-500.0,0.00046575,31]
[313416378,1707329461977,-589.91,0.00046575,31]
[313416379,1707329461989,-500.0,0.00046575,31]
[313416380,1707329461999,-500.0,0.00046575,31]
[313416381,1707329462010,-500.0,0.00046575,31]
[313416382,1707329462020,-500.0,0.00046575,31]
[313416383,1707329462030,-500.0,0.00046575,31]
[313416384,1707329462039,-500.0,0.00046575,31]
[313416385,1707329462049,-644.95,0.00046575,31]
[313416386,1707329462059,-500.0,0.00046575,31]
[313416387,1707329462069,-644.08,0.00046575,31]
[313416388,1707329462078,-1191.19,0.00046575,31]
[313416389,1707329462089,-500.0,0.00046575,31]
[313416390,1707329462099,-500.0,0.00046575,31]
[313416391,1707329462108,-500.0,0.00046575,31]
[313416392,1707329462118,-500.0,0.00046575,31]
[313416393,1707329462127,-559.15,0.00046575,31]
[313416394,1707329462137,-500.0,0.00046575,31]
[313416395,1707329462146,-412.39951563,0.00046575,31]
[313416396,1707329462155,-500.0,0.00046575,31]
[313416397,1707329462164,-685.14,0.00046575,31]
[313416398,1707329462174,-500.0,0.00046575,31]
[313416399,1707329462184,-1168.23,0.00046575,31]
[313416400,1707329462193,-1421.59,0.00046575,31]
[313416401,1707329462203,-1363.04,0.00046575,31]
[313416402,1707329462213,-500.0,0.00046575,31]
[313416403,1707329462221,-500.0,0.00046575,31]
[313416404,1707329462231,-500.0,0.00046575,31]
[313416405,1707329462242,-500.0,0.00046575,31]
[313416406,1707329462252,-500.0,0.00046575,31]
[313416407,1707329462262,-1323.31,0.00046575,31]
[313416408,1707329462271,-500.0,0.00046575,31]
[313416409,1707329462281,-162.93866009,0.00046575,31]
[313416410,1707329462290,-500.0,0.00046575,31]
[313416411,1707329462300,-1103.32,0.00046575,31]
[313416412,1707329462309,-500.0,0.00046575,31]
[313416413,1707329462318,-500.0,0.00046575,31]
[313416414,1707329462328,-500.0,0.00046575,31]
[313416415,1707329462338,-448.87981573,0.00046575,31]
[313416416,1707329462348,-527.84797519,0.00046575,31]
[313416417,1707329462357,-501.2,0.00046575,31]
[313416418,1707329462367,-500.0,0.00046575,31]
[313416419,1707329462376,-628.49,0.00046575,31]
[313416420,1707329462386,-500.0,0.00046575,31]
[313416421,1707329462395,-500.0,0.00046575,31]
[313416422,1707329462405,-500.0,0.00046575,31]
[313416423,1707329462415,-500.0,0.00046575,31]
[313416424,1707329462424,-500.0,0.00046575,31]
[313416425,1707329462434,-645.37,0.00046575,31]
[313416426,1707329462443,-541.39,0.00046575,31]
[313416427,1707329462452,-1042.75,0.00046575,31]
[313416428,1707329462462,-500.0,0.00046575,31]
[313416429,1707329462472,-500.0,0.00046575,31]
[313416430,1707329462481,-500.0,0.00046575,31]
[313416431,1707329462490,-500.0,0.00046575,31]
[313416432,1707329462500,-500.0,0.00046575,31]
[313416433,1707329462510,-2149.45,0.00046575,31]
[313416434,1707329462519,-996.98,0.00046575,31]
[313416435,1707329462528,-500.0,0.00046575,31]
[313416436,1707329462537,-500.0,0.00046575,31]
[313416437,1707329462546,-528.03965142,0.00046575,31]
[313416438,1707329462556,-500.0,0.00046575,31]
[313416439,1707329462565,-500.0,0.00046575,31]
[313416440,1707329462574,-697.08,0.00046575,31]
[313416441,1707329462584,-500.0,0.00046575,31]
[313416442,1707329462593,-500.0,0.00046575,31]
[313416443,1707329462603,-500.0,0.00046575,31]
[313416444,1707329462612,-500.0,0.00046575,31]
[313416445,1707329462621,-565.16,0.00046575,31]
[313416446,1707329462630,-500.0,0.00046575,31]
[313416447,1707329462639,-500.0,0.00046575,31]
[313416448,1707329462648,-500.0,0.00046575,31]
[313416449,1707329462657,-500.0,0.00046575,31]
[313416450,1707329462667,-500.0,0.00046575,31]
[313416451,1707329462676,-1094.41,0.00046575,31]
[313416452,1707329462685,-238.8038741,0.00046575,31]
[313416453,1707329462694,-500.0,0.00046575,31]
[313416454,1707329462703,-944.56,0.00046575,31]
[313416455,1707329462712,-2076.41,0.00046575,31]
[313416456,1707329462721,-500.0,0.00046575,31]
[313416457,1707329462730,-1178.08,0.00046575,31]
[313416458,1707329462739,-1246.29,0.00046575,31]
[313416459,1707329462748,-500.0,0.00046575,31]
[313416460,1707329462757,-500.0,0.00046575,10]
[313416461,1707329462767,-566.51,0.00046575,31]
[313416462,1707329462776,-500.0,0.00046575,31]
[313416463,1707329462785,-567.43366812,0.00046575,31]
[313416464,1707329462795,-553.24,0.00046575,31]
[313416465,1707329462805,-14311.81,0.00046575,31]
[313416466,1707329462815,-500.0,0.00046575,31]
[313416467,1707329462826,-628.74,0.00046575,31]
[313416468,1707329462837,-858.53,0.00046575,31]
[313416469,1707329462847,-500.0,0.00046575,31]
[313416470,1707329462856,-500.0,0.00046575,31]
[313416471,1707329462866,-592.24951871,0.00046575,31]
[313416472,1707329462875,-771.5,0.00046575,31]
[313416473,1707329463009,-500.0,0.00046575,31]
[313416474,1707329463023,-501.35243052,0.00046575,31]
[313416475,1707329463033,-500.0,0.00046575,31]
[313416476,1707329463042,-523.24266178,0.00046575,31]
[313416477,1707329463054,-500.0,0.00046575,31]
[313416478,1707329463063,-500.0,0.00046575,31]
[313416479,1707329463072,-3613.69,0.00046575,31]
[313416480,1707329463083,-492.17970163,0.00046575,31]
[313416481,1707329463092,-500.0,0.00046575,31]
[313416482,1707329463102,-512.29862289,0.00046575,31]
[313416483,1707329463111,-500.0,0.00046575,31]
[313416484,1707329463121,-500.0,0.00046575,31]
[313416485,1707329463130,-1079.81,0.00046575,31]
[313416486,1707329463139,-500.0,0.00046575,30]
[313416487,1707329463150,-870.08,0.00046575,31]
[313416488,1707329463159,-708.05,0.00046575,31]
[313416489,1707329463169,-500.0,0.00046575,31]
[313416490,1707329463178,-1244.43,0.00046575,31]
[313416491,1707329463187,-500.0,0.00046575,31]
[313416492,1707329463197,-500.0,0.00046575,31]
[313416493,1707329463206,-500.0,0.00046575,31]
[313416494,1707329463215,-500.0,0.00046575,31]
[313416495,1707329463224,-500.0,0.00046575,31]
[313416496,1707329463234,-1230.0,0.00046575,31]
[313416497,1707329463243,-577.02034252,0.00046575,31]
[313416498,1707329463252,-561.42,0.00046575,31]
[313416499,1707329463261,-500.0,0.00046575,31]
[313416500,1707329463270,-500.0,0.00046575,31]
[313416501,1707329463279,-500.0,0.00046575,31]
[313416502,1707329463289,-500.0,0.00046575,31]
[313416503,1707329463298,-523.81708336,0.00046575,31]
[313416504,1707329463307,-500.0,0.00046575,31]
[313416505,1707329463316,-1027.11,0.00046575,31]
[313416506,1707329463325,-500.0,0.00046575,31]
[313416507,1707329463335,-1030.47,0.00046575,31]
[313416508,1707329463344,-500.0,0.00046575,31]
[313416509,1707329463354,-500.0,0.00046575,31]